[Event "*** Titled Tuesday 3|2 Blitz"]
[Site "Chess.com"]
[Date "2015.01.27"]
[Round "4"]
[White "GasconJR"]
[Black "stepanosinovsky"]
[Result "1-0"]
[WhiteElo "1969"]
[BlackElo "2228"]
[TimeControl "180+2"]
[EndTime "12:00:21 PST"]
[Termination "GasconJR won by resignation"]

1. e4 {[%clk 0:02:59]} 1... e5 {[%clk 0:02:58.6]} 2. Nf3 {[%clk 0:03:00.1]} 2...
Nc6 {[%clk 0:03:00.1]} 3. Bb5 {[%clk 0:03:00.5]} 3... a6 {[%clk 0:03:01.1]} 4.
Ba4 {[%clk 0:03:00.3]} 4... Nf6 {[%clk 0:03:02.1]} 5. O-O {[%clk 0:03:01.3]}
5... Be7 {[%clk 0:03:02.4]} 6. Re1 {[%clk 0:03:02.6]} 6... b5 {[%clk 0:03:03.5]}
7. Bb3 {[%clk 0:03:04.2]} 7... O-O {[%clk 0:03:05.4]} 8. a4 {[%clk 0:02:52.9]}
8... Bb7 {[%clk 0:03:06]} 9. d3 {[%clk 0:02:50.4]} 9... d5 {[%clk 0:03:01]} 10.
Qe2 {[%clk 0:02:44.9]} 10... dxe4 {[%clk 0:02:54.1]} 11. dxe4 {[%clk 0:02:45.5]}
11... Na5 {[%clk 0:02:53.5]} 12. Nbd2 {[%clk 0:02:42.1]} 12... Nxb3 {[%clk
0:02:52.8]} 13. cxb3 {[%clk 0:02:40.6]} 13... Bd6 {[%clk 0:02:46.9]} 14. Qd3
{[%clk 0:01:56.1]} 14... h6 {[%clk 0:02:09.4]} 15. Nf1 {[%clk 0:01:55.2]} 15...
Bb4 {[%clk 0:01:57]} 16. Qxd8 {[%clk 0:01:54.1]} 16... Rfxd8 {[%clk 0:01:48.3]}
17. Bd2 {[%clk 0:01:55.6]} 17... Bd6 {[%clk 0:01:47.2]} 18. Ng3 {[%clk
0:01:54.4]} 18... Kh7 {[%clk 0:01:47.5]} 19. Bc3 {[%clk 0:01:54.8]} 19... Re8
{[%clk 0:01:45.6]} 20. b4 {[%clk 0:01:37.9]} 20... g6 {[%clk 0:01:44.2]} 21.
axb5 {[%clk 0:01:33.6]} 21... axb5 {[%clk 0:01:45]} 22. Rxa8 {[%clk 0:01:12.7]}
22... Bxa8 {[%clk 0:01:46.9]} 23. Nd2 {[%clk 0:01:09.4]} 23... h5 {[%clk
0:01:44.7]} 24. f3 {[%clk 0:01:08.5]} 24... c5 {[%clk 0:01:38.1]} 25. Nb3 {[%clk
0:00:58.6]} 25... cxb4 {[%clk 0:01:37.2]} 26. Bd2 {[%clk 0:01:00.2]} 26... Bb7
{[%clk 0:01:30]} 27. Bg5 {[%clk 0:00:55.8]} 27... Ng8 {[%clk 0:01:21]} 28. Rd1
{[%clk 0:00:55.9]} 28... Re6 {[%clk 0:01:19.2]} 29. Be3 {[%clk 0:00:36.6]} 29...
Nf6 {[%clk 0:00:31.9]} 30. Bc5 {[%clk 0:00:37.2]} 30... Ne8 {[%clk 0:00:23.6]}
31. Nf1 {[%clk 0:00:32]} 31... Bc8 {[%clk 0:00:22.1]} 32. Bf2 {[%clk 0:00:23.3]}
32... Be7 {[%clk 0:00:21.5]} 33. Ne3 {[%clk 0:00:23.3]} 33... Rc6 {[%clk
0:00:21.9]} 34. Nd5 {[%clk 0:00:19]} 34... Bf8 {[%clk 0:00:22.2]} 35. Rd2 {[%clk
0:00:19.1]} 35... Be6 {[%clk 0:00:22.6]} 36. Kf1 {[%clk 0:00:19.8]} 36... Nd6
{[%clk 0:00:20.8]} 37. Ke2 {[%clk 0:00:13.8]} 37... Nc4 {[%clk 0:00:21.5]} 38.
Rc2 {[%clk 0:00:14.6]} 38... Kg7 {[%clk 0:00:21.4]} 39. Ne3 {[%clk 0:00:13.2]}
39... f6 {[%clk 0:00:21.4]} 40. Nd5 {[%clk 0:00:12.1]} 40... Rc8 {[%clk
0:00:21.7]} 41. Nd2 {[%clk 0:00:12.3]} 41... Rd8 {[%clk 0:00:20.8]} 42. Nxc4
{[%clk 0:00:12.6]} 42... bxc4 {[%clk 0:00:21.7]} 43. Rxc4 {[%clk 0:00:10.8]}
43... Bxd5 {[%clk 0:00:23]} 44. exd5 {[%clk 0:00:12.2]} 44... Rxd5 {[%clk
0:00:24.8]} 45. Rc7+ {[%clk 0:00:12.4]} 45... Kg8 {[%clk 0:00:25.9]} 46. Rc8
{[%clk 0:00:13.2]} 46... Kf7 {[%clk 0:00:26.3]} 47. Rc7+ {[%clk 0:00:13.5]}
47... Ke6 {[%clk 0:00:26.3]} 48. Rb7 {[%clk 0:00:15.2]} 48... Be7 {[%clk
0:00:25.5]} 49. Be3 {[%clk 0:00:16.4]} 49... f5 {[%clk 0:00:26.3]} 50. h3 {[%clk
0:00:16.2]} 50... Rd7 {[%clk 0:00:25.6]} 51. Rxd7 {[%clk 0:00:15]} 51... Kxd7
{[%clk 0:00:26.2]} 52. Kd3 {[%clk 0:00:16.4]} 52... Kc6 {[%clk 0:00:26.5]} 53.
Kc4 {[%clk 0:00:17.6]} 53... e4 {[%clk 0:00:26.8]} 54. fxe4 {[%clk 0:00:16.7]}
54... fxe4 {[%clk 0:00:27.8]} 55. Bd2 {[%clk 0:00:13.8]} 55... Bd8 {[%clk
0:00:15.1]} 56. Bxb4 {[%clk 0:00:14.8]} 56... Bb6 {[%clk 0:00:16.1]} 57. Bc3
{[%clk 0:00:15.1]} 57... Bg1 {[%clk 0:00:15.8]} 58. b4 {[%clk 0:00:16]} 58...
Bf2 {[%clk 0:00:15.2]} 59. b5+ {[%clk 0:00:16]} 59... Kb7 {[%clk 0:00:15.3]} 60.
Bd4 {[%clk 0:00:14.9]} 60... e3 {[%clk 0:00:14]} 61. Kd3 {[%clk 0:00:14.7]}
61... e2 {[%clk 0:00:15.2]} 62. Bxf2 {[%clk 0:00:15.1]} 1-0

[Event "*** Titled Tuesday 3|2 Blitz"]
[Site "Chess.com"]
[Date "2015.01.27"]
[Round "4"]
[White "Beca95"]
[Black "Gevorg_Harutjunyan"]
[Result "1/2-1/2"]
[WhiteElo "2488"]
[BlackElo "2529"]
[TimeControl "180+2"]
[EndTime "12:00:58 PST"]
[Termination "Game drawn by repetition"]

1. d4 {[%clk 0:03:00]} 1... Nf6 {[%clk 0:02:58.9]} 2. Nf3 {[%clk 0:02:59.6]}
2... g6 {[%clk 0:03:00]} 3. Bf4 {[%clk 0:02:56.3]} 3... Bg7 {[%clk 0:03:00.9]}
4. h3 {[%clk 0:02:57.8]} 4... O-O {[%clk 0:03:01.3]} 5. e3 {[%clk 0:02:59.2]}
5... b6 {[%clk 0:02:59.2]} 6. Nbd2 {[%clk 0:02:59.6]} 6... Bb7 {[%clk
0:03:00.2]} 7. c3 {[%clk 0:03:00.7]} 7... c5 {[%clk 0:03:01.7]} 8. Bh2 {[%clk
0:03:01.5]} 8... cxd4 {[%clk 0:03:03.1]} 9. cxd4 {[%clk 0:03:02.2]} 9... d6
{[%clk 0:03:03.2]} 10. Be2 {[%clk 0:03:03.4]} 10... Nc6 {[%clk 0:02:54.7]} 11.
O-O {[%clk 0:03:04.2]} 11... Qd7 {[%clk 0:02:55.1]} 12. a3 {[%clk 0:03:04.7]}
12... Rfd8 {[%clk 0:02:55.2]} 13. Rc1 {[%clk 0:03:05.5]} 13... Rac8 {[%clk
0:02:48.1]} 14. Re1 {[%clk 0:02:56.7]} 14... a6 {[%clk 0:02:42.2]} 15. Nc4
{[%clk 0:02:56.2]} 15... Qc7 {[%clk 0:02:28.9]} 16. b4 {[%clk 0:02:33.3]} 16...
b5 {[%clk 0:02:08.4]} 17. Na5 {[%clk 0:02:32.9]} 17... Qb6 {[%clk 0:02:08.8]}
18. Nxb7 {[%clk 0:02:33.9]} 18... Qxb7 {[%clk 0:02:10.7]} 19. Qb3 {[%clk
0:02:33.8]} 19... Nb8 {[%clk 0:01:59.1]} 20. Bd3 {[%clk 0:02:29.9]} 20... Nbd7
{[%clk 0:01:48.2]} 21. Nd2 {[%clk 0:02:18.2]} 21... Nb6 {[%clk 0:01:40.5]} 22.
Bg3 {[%clk 0:02:17.1]} 22... Rxc1 {[%clk 0:01:27.7]} 23. Rxc1 {[%clk 0:02:19]}
23... Rc8 {[%clk 0:01:29.1]} 24. Rc2 {[%clk 0:02:15.7]} 24... d5 {[%clk
0:01:09]} 25. Qa2 {[%clk 0:01:58.4]} 25... Nc4 {[%clk 0:01:06.6]} 26. Nb3 {[%clk
0:01:58.9]} 26... Ne4 {[%clk 0:01:02.9]} 27. Bxe4 {[%clk 0:01:42.5]} 27... dxe4
{[%clk 0:01:04.2]} 28. Nc5 {[%clk 0:01:43.5]} 28... Qb6 {[%clk 0:00:57.1]} 29.
Nxe4 {[%clk 0:01:41.3]} 29... Rd8 {[%clk 0:00:41.3]} 30. Nc5 {[%clk 0:01:30.6]}
30... h5 {[%clk 0:00:36.7]} 31. a4 {[%clk 0:01:14.2]} 31... e5 {[%clk
0:00:36.7]} 32. axb5 {[%clk 0:01:14.6]} 32... axb5 {[%clk 0:00:36.7]} 33. dxe5
{[%clk 0:01:14.7]} 33... Bxe5 {[%clk 0:00:26.9]} 34. Bxe5 {[%clk 0:01:14.5]}
34... Nxe5 {[%clk 0:00:28.3]} 35. Rd2 {[%clk 0:01:15]} 35... Nc4 {[%clk
0:00:25.8]} 36. Rxd8+ {[%clk 0:00:57.6]} 36... Qxd8 {[%clk 0:00:27.7]} 37. Qc2
{[%clk 0:00:58.1]} 37... Qa8 {[%clk 0:00:21.6]} 38. Qc3 {[%clk 0:00:57]} 38...
Qd8 {[%clk 0:00:19.9]} 39. Nd3 {[%clk 0:00:56.3]} 39... Qd6 {[%clk 0:00:19.3]}
40. Nb2 {[%clk 0:00:38.6]} 40... Nxb2 {[%clk 0:00:12.2]} 41. Qxb2 {[%clk
0:00:40.5]} 41... Qd1+ {[%clk 0:00:11.8]} 42. Kh2 {[%clk 0:00:41]} 42... Qd6+
{[%clk 0:00:13.5]} 43. f4 {[%clk 0:00:38]} 43... Qd3 {[%clk 0:00:08.6]} 44. Qd4
{[%clk 0:00:34.3]} 44... Qe2 {[%clk 0:00:09.4]} 45. e4 {[%clk 0:00:20.3]} 45...
Qf1 {[%clk 0:00:07.7]} 46. Qe5 {[%clk 0:00:19.7]} 46... h4 {[%clk 0:00:07.1]}
47. f5 {[%clk 0:00:21.1]} 47... gxf5 {[%clk 0:00:04.6]} 48. exf5 {[%clk
0:00:21]} 48... Kh7 {[%clk 0:00:04.1]} 49. Qe4 {[%clk 0:00:18.9]} 49... Qc4
{[%clk 0:00:04.7]} 50. Qg4 {[%clk 0:00:13.5]} 50... Kh6 {[%clk 0:00:03.8]} 51.
Kg1 {[%clk 0:00:12.4]} 51... Qc1+ {[%clk 0:00:04.6]} 52. Kh2 {[%clk 0:00:12.5]}
52... Qc7+ {[%clk 0:00:04.9]} 53. Kh1 {[%clk 0:00:11.8]} 53... Qc1+ {[%clk
0:00:06.2]} 54. Kh2 {[%clk 0:00:13.1]} 54... Qc7+ {[%clk 0:00:07.8]} 55. Kg1
{[%clk 0:00:14.5]} 55... Qc1+ {[%clk 0:00:08.9]} 56. Kf2 {[%clk 0:00:16]} 56...
Qd2+ {[%clk 0:00:08.8]} 57. Kf3 {[%clk 0:00:16.8]} 57... Qd3+ {[%clk 0:00:08.3]}
58. Kf2 {[%clk 0:00:18.4]} 58... Qd2+ {[%clk 0:00:09.3]} 59. Qe2 {[%clk
0:00:19.6]} 59... Qxb4 {[%clk 0:00:08.9]} 60. Qe3+ {[%clk 0:00:21.1]} 60... Kh7
{[%clk 0:00:09.2]} 61. Qg5 {[%clk 0:00:22.3]} 61... Qd4+ {[%clk 0:00:09.5]} 62.
Ke2 {[%clk 0:00:23.1]} 62... b4 {[%clk 0:00:09.9]} 63. f6 {[%clk 0:00:21.7]}
63... Qe4+ {[%clk 0:00:09.4]} 64. Kd2 {[%clk 0:00:23.2]} 64... Qd4+ {[%clk
0:00:10.1]} 65. Kc1 {[%clk 0:00:23.9]} 65... Qc3+ {[%clk 0:00:11]} 66. Kb1
{[%clk 0:00:23.8]} 66... Qb3+ {[%clk 0:00:11.7]} 67. Kc1 {[%clk 0:00:24.8]}
67... Qc3+ {[%clk 0:00:13.1]} 68. Kd1 {[%clk 0:00:24.9]} 68... Qd3+ {[%clk
0:00:13.8]} 69. Kc1 {[%clk 0:00:25.1]} 69... Qc3+ {[%clk 0:00:14.9]} 70. Kb1
{[%clk 0:00:26.5]} 70... Qb3+ {[%clk 0:00:15.5]} 71. Kc1 {[%clk 0:00:21.5]}
71... Qc3+ {[%clk 0:00:10.9]} 72. Kb1 {[%clk 0:00:22.8]} 72... Qb3+ {[%clk
0:00:09.6]} 73. Kc1 {[%clk 0:00:23.9]} 73... Qc3+ {[%clk 0:00:10.8]} 74. Kb1
{[%clk 0:00:25.4]} 74... Qb3+ {[%clk 0:00:11.9]} 1/2-1/2